fUSD/lending_fUSD_20260304
["ID","MTS","AMOUNT","RATE_DAILY","PERIOD"]
[407658328,1772619103344,-150.0,0.0005,2]
[407658329,1772619103355,-230.4115463,0.0005,20]
[407658330,1772619103367,-151.0,0.0005,2]
[407658331,1772619103377,-223290.41,0.0005,120]
[407658332,1772619103387,-10000.0,0.0005,120]
[407658333,1772619103397,-261.84,0.0005,120]
[407658334,1772619103407,-1000000.0,0.0005,30]
[407658335,1772619103416,-1000000.0,0.0005,31]
[407658336,1772619103426,-1000000.0,0.0005,32]
[407658337,1772619103435,-1000000.0,0.0005,33]
[407658338,1772619103444,-1000000.0,0.0005,34]
[407658339,1772619103454,-1000000.0,0.0005,35]
[407658340,1772619103463,-1000000.0,0.0005,33]
[407658341,1772619103473,-1000000.0,0.0005,120]
[407658342,1772619103482,-1000000.0,0.0005,120]
[407658343,1772619103491,-1000000.0,0.0005,35]
[407658344,1772619103500,-1000000.0,0.0005,35]
[407658345,1772619103510,-1000000.0,0.0005,120]
[407658346,1772619103519,-1000000.0,0.0005,120]
[407658347,1772619103529,-203103.0,0.0005,120]
[407658348,1772619103539,-1000000.0,0.0005,48]
[407658349,1772619103549,-1000000.0,0.0005,48]
[407658350,1772619103558,-1000000.0,0.0005,49]
[407658351,1772619103568,-1000000.0,0.0005,49]
[407658352,1772619103577,-10000.0,0.0005,120]
[407658353,1772619103587,-39402.9924307,0.0005,120]
[407658354,1772619103597,-1000.0,0.0005,120]
[407658355,1772619103609,-2044.600196,0.0005,120]
[407658356,1772619103618,-15000.0,0.0005,120]
[407658357,1772619103627,-478.695681,0.0005,120]
[407658358,1772619103637,-8620.508131,0.0005,120]
[407658359,1772619103648,-500000.0,0.0005,37]
[407658360,1772619103658,-500000.0,0.0005,37]
[407658361,1772619103669,-1000000.0,0.0005,37]
[407658362,1772619103678,-1000000.0,0.0005,40]
[407658363,1772619103690,-1000000.0,0.0005,45]
[407658364,1772619103700,-1000000.0,0.0005,45]
[407658365,1772619103709,-1000000.0,0.0005,45]
[407658366,1772619103719,-1000000.0,0.0005,45]
[407658367,1772619103728,-1000000.0,0.0005,50]
[407658368,1772619103737,-1000000.0,0.0005,50]
[407658369,1772619103746,-1000000.0,0.0005,55]
[407658370,1772619103755,-292447.11189488,0.0005,55]
[407658371,1772619103947,-151.0,0.00041096,120]
[407658372,1772619103956,-7033.93040933,0.0005,55]
[407658373,1772619464322,-209.117595,8.956e-05,2]
[407658374,1772619464342,-438.0,9.002e-05,2]
[407658375,1772619464364,-1200.0,9.002e-05,2]
[407658376,1772619464384,-300.0,9.002e-05,2]
[407658377,1772619464405,-500.0,9.003e-05,2]
[407658378,1772619464434,-500.0,9.003e-05,2]
[407658379,1772619464455,-500.0,9.003e-05,2]
[407658380,1772619464476,-500.0,9.003e-05,2]
[407658381,1772619464498,-500.0,9.003e-05,2]
[407658382,1772619464520,-352.882405,9.003e-05,2]
[407658383,1772619467323,-147.117595,9.003e-05,2]
[407658384,1772619467344,-500.0,9.003e-05,2]
[407658385,1772619467366,-500.0,9.003e-05,2]
[407658386,1772619467388,-500.0,9.003e-05,2]
[407658387,1772619467416,-500.0,9.003e-05,2]
[407658388,1772619467437,-500.0,9.003e-05,2]
[407658389,1772619467459,-500.0,9.003e-05,2]
[407658390,1772619467480,-500.0,9.003e-05,2]
[407658391,1772619467502,-500.0,9.003e-05,2]
[407658392,1772619467523,-500.0,9.003e-05,2]
[407658393,1772619467543,-352.882405,9.003e-05,2]
[407658394,1772619470352,-147.117595,9.003e-05,2]
[407658395,1772619470373,-675.780027,9.003e-05,2]
[407658396,1772619470394,-179.89843246,9.003e-05,2]
[407658397,1772619514058,-264.0,9.902e-05,2]
[407658398,1772619514080,-17.3646545,0.0001,2]
[407658399,1772619515139,-264.0,0.0001,2]
[407658402,1772620005102,-190.04393757,9.003e-05,2]
[407658411,1772620156079,-477.95606243,9.003e-05,2]
[407658412,1772620213565,257.47656493,7.1e-05,2]
[407658413,1772620213589,146.56343507,7.1e-05,2]
[407658416,1772620231576,-241.0,0.00011177,2]
[407658418,1772620231588,-184.38727652,0.00011899,2]
[407658420,1772620231598,-281.3646545,0.00011982,2]
[407658421,1772620231609,-281.3646545,0.00012,2]
[407658423,1772620231619,-678.98,0.00012,2]
[407658425,1772620231631,-500.0,0.00012,2]
[407658426,1772620231641,-500.0,0.00012,2]
[407658427,1772620231655,-500.0,0.00012,2]
[407658428,1772620231667,-500.0,0.00012,2]
[407658429,1772620231678,-500.0,0.00012,2]
[407658430,1772620231690,-500.0,0.00012,2]
[407658431,1772620231702,-500.0,0.00012,2]
[407658432,1772620231712,-500.0,0.00012,2]
[407658433,1772620231727,-500.0,0.00012,2]
[407658434,1772620231738,-500.0,0.00012,2]
[407658435,1772620231749,-500.0,0.00012,2]
[407658436,1772620231763,-11.71540308,0.00012,2]
[407658437,1772620231777,-488.28459692,0.00012,2]
[407658438,1772620231787,-500.0,0.00012,2]
[407658439,1772620231800,-500.0,0.00012,2]
[407658440,1772620231811,-500.0,0.00012,2]
[407658441,1772620231822,-748.83332692,0.00012,2]
[407658442,1772620231834,-500.0,0.00012,2]
[407658443,1772620231853,-500.0,0.00012,2]
[407658444,1772620231868,-500.0,0.00012,2]
[407658446,1772620231879,-500.0,0.00012,2]
[407658448,1772620231893,-500.0,0.00012,2]
[407658449,1772620231903,-500.0,0.00012,2]
[407658450,1772620231913,-500.0,0.00012,2]
[407658451,1772620231923,-500.0,0.00012,2]
[407658453,1772620231936,-500.0,0.00012,2]
[407658455,1772620231947,-600.0,0.00012,2]
[407658457,1772620231957,-600.0,0.00012,2]
[407658459,1772620231971,-678.98,0.00012274,2]
[407658461,1772620231982,-678.98,0.00012548,2]
[407658463,1772620231992,-678.98,0.00012822,2]
[407658484,1772620232227,-678.98,0.00013096,2]
[407658486,1772620232239,-678.98,0.0001337,2]
[407658488,1772620232252,-678.98,0.00013644,2]
[407658490,1772620232261,-678.99421015,0.00013918,2]
[407658492,1772620232274,-500.0,0.00013972,2]
[407658494,1772620232284,-506.0,0.00014,2]
[407658496,1772620232293,-500.0,0.00014373,2]
[407658498,1772620232304,-500.0,0.00014373,2]
[407658500,1772620232314,-500.0,0.00014373,2]
[407658502,1772620232326,-500.0,0.00014373,2]
[407658504,1772620232336,-150.99,0.00014504,2]
[407658506,1772620232350,-299.99,0.00014504,2]
[407658508,1772620232360,-115.01684829,0.00014504,2]
[407658511,1772620232373,-9884.97315171,0.00014504,2]
[407658513,1772620232384,-499.99,0.00014504,2]
[407658515,1772620232394,-150.99,0.00014504,2]
[407658516,1772620232404,-500.0,0.00014921,2]
[407658518,1772620232414,-500.0,0.00014921,2]
[407658521,1772620232425,-500.38582798,0.00014921,2]
[407658522,1772620232435,-502.26276919,0.00014921,2]
[407658525,1772620232445,-250.0,0.00015,2]
[407658527,1772620232456,-9817.69,0.00015881,2]
[407658529,1772620232469,-166.66,0.00016822,2]
[407658531,1772620232481,-315.74082907,0.00016973,2]
[407658533,1772620232493,-1750.243,0.00016973,2]
[407658535,1772620232505,-161.252,0.00016973,2]
[407658537,1772620232515,-779.98658469,0.00016985,2]
[407658539,1772620232527,-300.0,0.00017,2]
[407658541,1772620232539,-98.28851406,0.00017296,2]
[407658543,1772620232551,-1901.71148594,0.00017296,2]
[407658545,1772620232564,-166.66,0.00017378,2]
[407658547,1772620232575,-184.38727652,0.0001741,2]
[407658549,1772620232586,-4135.0614,0.0001741,2]
[407658551,1772620232599,-2771.42712284,0.0001751,2]
[407658554,1772620232613,-331.46141028,0.0001751,2]
[407658556,1772620232630,-465.9411542,0.0001751,2]
[407658558,1772620232645,-714.14,0.0001751,2]
[407658571,1772620237786,-2463.90971268,0.0001751,2]
[407658573,1772620237795,-2184.62777194,0.0001751,2]
[407658575,1772620237807,-14161.19775467,0.0001751,2]
[407658577,1772620237819,-19133.84740202,0.0001751,2]
[407658578,1772620237843,-27218.85937137,0.0001751,2]
[407658579,1772620237854,-5000.0,0.0001751,2]
[407658580,1772620237863,-2500.0,0.0001751,2]
[407658581,1772620237873,-2590.11672851,0.0001755,2]
[407658582,1772620237882,-1037.64243142,0.000176,2]
[407658583,1772620237892,-500.0,0.00017609,2]
[407658584,1772620237901,-500.0,0.00017609,2]
[407658585,1772620237910,-628.03938769,0.00017609,2]
[407658586,1772620237920,-199960.42596919,0.0001761,2]
[407658587,1772620237934,-743548.62437771,0.0001761,2]
[407658588,1772620237948,-625431.71725822,0.0001761,2]
[407658589,1772620237962,-202204.21730532,0.0001761,2]
[407658590,1772620237973,-12086.35032955,0.0001761,2]
[407658591,1772620238002,-3784.59443519,0.0001761,2]
[407658592,1772620238014,-2427.57757464,0.0001761,2]
[407658593,1772620238037,-6149.7,0.0001761,2]
[407658594,1772620238049,-435.45427521,0.0001761,2]
[407658595,1772620238122,-1861.64227314,0.0001761,2]
[407658596,1772620238133,-3294.31206656,0.0001761,2]
[407658597,1772620238145,-3413.57658211,0.0001761,2]
[407658598,1772620238156,-1094.57512164,0.0001761,2]
[407658599,1772620238167,-432.14322131,0.0001761,2]
[407658600,1772620238178,-363.98,0.0001761,2]
[407658794,1772620240103,-166.96971586,0.00016438,2]
[407658796,1772620240113,-166.96971586,0.00016438,2]
[407658798,1772620240122,-60.19137264,0.0001761,2]
[407658819,1772620240316,-444.32365642,0.0001761,2]
[407658821,1772620240327,-1117.08,0.0001761,2]
[407658843,1772620240529,-768.71294345,0.0001761,2]
[407659065,1772620242718,-9294.82794274,0.0001761,2]
[407659080,1772620242826,-12946.90407536,0.0001761,2]
[407659097,1772620242988,-1027.23724345,0.0001761,2]
[407659347,1772620245593,-5570.45453968,0.0001761,2]
[407659354,1772620245649,-2852.5634555,0.0001761,2]
[407659366,1772620245757,-183621.32096531,0.0001761,2]
[407659389,1772620245973,-9146.95143921,0.0001761,2]
[407659813,1772620321129,163.0,0.00013,60]
[407659822,1772620883576,1533.67,6.93e-05,2]
[407659823,1772620937710,481.67683845,7.1e-05,2]
[407659825,1772621204191,-233.17945954,7.295e-05,2]
[407659830,1772621368126,-1300.49054046,7.295e-05,2]
[407659831,1772621368146,-1533.67,7.66e-05,2]
[407659832,1772621368165,-174.606786,7.945e-05,2]
[407659833,1772621368186,-990.78306907,8.024e-05,2]
[407659843,1772621431744,-217.0,8.024e-05,2]
[407659844,1772621431754,-542.88693093,8.024e-05,2]
[407659845,1772621431763,-154.988711,8.024e-05,2]
[407659846,1772621431773,-1533.67,8.389e-05,2]
[407659847,1772621431782,-1533.67,8.754e-05,2]
[407659848,1772621431791,-1533.67,9.119e-05,2]
[407659849,1772621431801,-1533.67,9.483e-05,2]
[407659850,1772621431811,-75.44435807,9.847e-05,2]
[407659851,1772621431823,-88.55564193,9.847e-05,2]
[407659852,1772621431832,-254.66594409,9.848e-05,2]
[407659853,1772621431845,-1279.00405591,9.848e-05,2]
[407659854,1772621431855,-3170.62294,9.95e-05,2]
[407659855,1772621431865,-200.0,0.0001,2]
[407659856,1772621431875,-151.0,0.0001,2]
[407659857,1772621431884,-153.38423145,0.0001,2]
[407659858,1772621431895,-500.0,0.0001,2]
[407659859,1772621431904,-500.0,0.0001,2]
[407659860,1772621431913,-500.0,0.0001,2]
[407659861,1772621431923,-500.0,0.0001,2]
[407659862,1772621431932,-500.0,0.0001,2]
[407659863,1772621431942,-500.0,0.0001,2]
[407659864,1772621431951,-500.0,0.0001,2]
[407659865,1772621431960,-500.0,0.0001,2]
[407659866,1772621431970,-500.0,0.0001,2]
[407659867,1772621431979,-500.0,0.0001,2]
[407659868,1772621431991,-500.0,0.0001,2]
[407659869,1772621432002,-500.0,0.0001,2]
[407659870,1772621432012,-500.0,0.0001,2]
[407659871,1772621432021,-151.0,0.0001,2]
[407659872,1772621432031,-151.0,0.0001,2]
[407659873,1772621432040,-151.0,0.0001,2]
[407659874,1772621432049,-151.0,0.0001,2]
[407659875,1772621432059,-151.0,0.0001,2]
[407659876,1772621432070,-151.0,0.0001,2]
[407659877,1772621432079,-151.0,0.0001,2]
[407659879,1772621432088,-151.0,0.0001,2]
[407659881,1772621432098,-151.0,0.0001,2]
[407659882,1772621432107,-151.0,0.0001,2]
[407659884,1772621432116,-151.0,0.0001,2]
[407659887,1772621432126,-1533.67,0.00010213,2]
[407659888,1772621432136,-1533.67,0.00010578,2]
[407659890,1772621432146,-1533.67,0.00010942,2]
[407659892,1772621432156,-1533.67,0.00011307,2]
[407659894,1772621432165,-1044.44,0.00011507,2]
[407659897,1772621432175,-1533.67,0.00011672,2]
[407659899,1772621432185,-200.0,0.00011929,2]
[407659901,1772621432197,-363.45274549,0.00012,2]
[407659903,1772621432208,-1533.67,0.00012037,2]
[407659905,1772621432217,-1533.67,0.00012401,2]
[407659907,1772621432226,-430.53,0.00012418,2]
[407659909,1772621432234,-1533.67,0.00012766,2]
[407659911,1772621432244,-1533.67,0.00013131,2]
[407659913,1772621432253,-1319.51903701,0.00013496,2]
[407659921,1772621432322,-214.15096299,0.00013496,2]
[407659923,1772621432331,-1040.26712378,0.0001366,2]
[407659925,1772621432341,-2112.89064761,0.0001366,2]
[407659928,1772621432352,-4091.94786815,0.0001366,2]
[407659930,1772621432363,-1797.19611425,0.0001366,2]
[407659932,1772621432374,-3701.37001177,0.0001366,2]
[407659934,1772621432385,-987.95536,0.0001366,2]
[407659936,1772621432396,-869.66570832,0.0001366,2]
[407659938,1772621432407,-846.46166189,0.0001366,2]
[407659952,1772621438015,-466.21354254,0.0001366,2]
[407659953,1772621438026,-380.03196169,0.0001366,2]
[407659954,1772621438036,-1533.67,0.0001386,2]
[407659955,1772621438045,-506.0,0.00014,2]
[407659956,1772621438056,-91.78278698,0.00014296,2]
[407659957,1772621438068,-435.97891113,0.00014296,2]
[407659958,1772621438079,-13846.37780608,0.00014296,2]
[407659966,1772621440016,-263.07133858,0.00014296,2]
[407659967,1772621440071,-333.81892786,0.00014296,2]
[407659968,1772621440333,-3163.46404984,0.00014296,2]
[407659969,1772621440545,-339.48509912,0.00014296,2]
[407659970,1772621440557,-756.7337,0.00014296,2]
[407659971,1772621440568,-2674.08738041,0.00014296,2]
[407659972,1772621440579,-166.66,0.00014364,2]
[407659973,1772621440589,-464.5282014,0.00014367,2]
[407659974,1772621440600,-166.33821323,0.00014367,2]
[407659975,1772621440609,-1784.55720386,0.00014367,2]
[407659976,1772621440621,-373.87340324,0.00014367,2]
[407659977,1772621440631,-500.0,0.00014373,2]
[407659978,1772621440640,-691.76162095,0.00014394,2]
[407659979,1772621440650,-1400.195,0.00014403,2]
[407659980,1772621440660,-161.253,0.00014403,2]
[407659981,1772621440671,-320.52717779,0.00014403,2]
[407659994,1772621442973,-179.47282221,0.00014403,2]
[407659995,1772621442982,-500.0,0.00014403,2]
[407659996,1772621442992,-500.0,0.00014403,2]
[407659997,1772621443002,-158.32705916,0.00014403,2]
[407659998,1772621443025,-341.67294084,0.00014403,2]
[407659999,1772621443035,-500.0,0.00014403,2]
[407660000,1772621443045,-500.0,0.00014403,2]
[407660001,1772621443058,-500.0,0.00014403,2]
[407660002,1772621443068,-500.0,0.00014403,2]
[407660003,1772621443078,-500.0,0.00014403,2]
[407660004,1772621443087,-500.0,0.00014403,2]
[407660005,1772621443097,-500.0,0.00014403,2]
[407660006,1772621443106,-500.0,0.00014403,2]
[407660007,1772621443116,-500.0,0.00014403,2]
[407660008,1772621443125,-500.0,0.00014403,2]
[407660009,1772621443134,-500.0,0.00014403,2]
[407660010,1772621443143,-500.0,0.00014403,2]
[407660011,1772621443156,-500.0,0.00014403,2]
[407660012,1772621443166,-500.0,0.00014403,2]
[407660013,1772621443175,-90.86429061,0.00014403,2]
[407660014,1772621443187,-409.13570939,0.00014403,2]
[407660015,1772621443196,-500.0,0.00014403,2]
[407660016,1772621443206,-500.0,0.00014403,2]
[407660017,1772621443216,-500.0,0.00014403,2]
[407660018,1772621443226,-500.0,0.00014403,2]
[407660019,1772621443238,-500.0,0.00014403,2]
[407660020,1772621443248,-500.0,0.00014403,2]
[407660021,1772621443258,-500.0,0.00014403,2]
[407660022,1772621443268,-500.0,0.00014403,2]
[407660023,1772621443279,-500.0,0.00014403,2]
[407660024,1772621443289,-500.0,0.00014403,2]
[407660025,1772621443299,-500.0,0.00014403,2]
[407660026,1772621443309,-486.28056321,0.00014403,2]
[407660027,1772621443317,-500.0,0.00014403,2]
[407660028,1772621443326,-500.0,0.00014403,2]
[407660029,1772621443336,-448.40617889,0.00014403,2]
[407660030,1772621443346,-500.0,0.00014403,2]
[407660031,1772621443355,-491.87148293,0.00014403,2]
[407660032,1772621443364,-200.0,0.00014403,2]
[407660033,1772621443373,-348409.30606551,0.00014404,2]
[407660034,1772621443388,-138166.18359393,0.00014404,2]
[407660035,1772621443397,-680.76275655,0.00014404,2]
[407660036,1772621443433,-876.94582205,0.00014404,2]
[407660037,1772621443444,-542955.50412349,0.00014404,2]
[407660042,1772621445750,-157.92597998,0.00014467,2]
[407660043,1772621445759,-166.66,0.00014667,2]
[407660044,1772621445767,-98.81586855,0.00014821,2]
[407660045,1772621445806,-128.31133145,0.00014821,2]
[407660046,1772621445815,-303.57366855,0.00014921,2]
[407660047,1772621445963,-285.15887579,0.00014921,2]
[407660048,1772621445974,-166.66,0.00014969,2]
[407660049,1772621445985,-166.66,0.00015272,2]
[407660050,1772621445996,-166.66,0.00015574,2]
[407660051,1772621446009,-166.66,0.00015876,2]
[407660052,1772621446018,-9999.99,0.00016116,2]
[407660053,1772621446028,-16000.0,0.000166,2]
[407660054,1772621446037,-1000.0,0.00017522,2]
[407660055,1772621446047,-160.0,0.00017647,2]
[407660056,1772621446056,-1600.0,0.0001771,2]
[407660057,1772621446066,-1000.0,0.00017796,2]
[407660058,1772621446075,-500.0,0.00017908,2]
[407660060,1772621446085,-166.66,0.00017933,2]
[407660061,1772621446095,-1000.0,0.0001807,2]
[407660062,1772621446104,-464.52820133,0.00018304,2]
[407660063,1772621446114,-166.33821318,0.00018304,2]
[407660064,1772621446124,-1000.0,0.00018344,2]
[407660066,1772621446133,-698.35,0.00018358,2]
[407660067,1772621446142,-166.66,0.00018488,2]
[407660070,1772621446152,-1000.0,0.00018618,2]
[407660071,1772621446162,-797.2,0.00018632,2]
[407660074,1772621446171,-210.27,0.00018838,2]
[407660075,1772621446180,-1640.0,0.00018892,2]
[407660077,1772621446189,-166.66,0.00019044,2]
[407660079,1772621446198,-1500.0,0.00019179,2]
[407660081,1772621446207,-37077.8,0.000192,2]
[407660083,1772621446216,-450.32,0.00019278,2]
[407660085,1772621446225,-166.66,0.00019599,2]
[407660088,1772621446237,-1600.0,0.00019924,2]
[407660090,1772621446246,-1041.0,0.00020525,2]
[407660092,1772621446255,-1212.621,0.00020525,2]
[407660093,1772621446264,-5987.0,0.00020525,2]
[407660095,1772621446274,-413.0,0.00020525,2]
[407660097,1772621446283,-2458.0,0.00020525,2]
[407660099,1772621446292,-450.32,0.00020648,2]
[407660101,1772621446301,-2158.43060706,0.00021454,2]
[407660103,1772621446310,-500.0,0.00021644,2]
[407660105,1772621446320,-500.0,0.00021699,2]
[407660107,1772621446329,-500.0,0.00021754,2]
[407660131,1772621446535,-500.0,0.00021808,2]
[407660133,1772621446544,-363.96206261,0.00021863,2]
[407660135,1772621446554,-5000.0,0.00021918,2]
[407660137,1772621446563,-394.99,0.00021971,2]
[407660139,1772621446573,-1600.0,0.00022138,2]
[407660141,1772621446582,-464.52820133,0.00022241,2]
[407660143,1772621446592,-166.33821318,0.00022241,2]
[407660145,1772621446601,-1044.44,0.00022771,2]
[407660147,1772621446611,-395.00788107,0.0002307,2]
[407660149,1772621446620,-1500.0,0.00023288,2]
[407660151,1772621446630,-1041.0,0.00023525,2]
[407660153,1772621446639,-413.0,0.00023525,2]
[407660155,1772621446648,-2458.0,0.00023525,2]
[407660157,1772621446659,-37077.8,0.000236,7]
[407660159,1772621446667,-1600.0,0.00024352,2]
[407660161,1772621446676,-417.0,0.0002463,2]
[407660163,1772621446685,-1000.0,0.00024658,2]
[407660165,1772621446694,-150.0,0.00024658,2]
[407660167,1772621446703,-7851.16918361,0.000248,2]
[407660169,1772621446715,-949.65,0.000248,2]
[407660171,1772621446726,-359.69059197,0.000248,2]
[407660174,1772621446737,-839.49022442,0.000248,2]
[407660176,1772621446746,-326.04,0.00025047,2]
[407660177,1772621446755,-150.0,0.0002589,2]
[407660179,1772621446765,-464.52820133,0.00026178,2]
[407660181,1772621446774,-46.50568107,0.00026178,2]
[407660184,1772621446789,-119.83253211,0.00026178,2]
[407660186,1772621446798,-1003.87986124,0.00026525,2]
[407660203,1772621582131,1495.0,0.00017,120]
[407660218,1772622631885,-500.0,9.003e-05,2]
[407660220,1772622631895,-235.90085166,9.003e-05,2]
[407660221,1772622631907,-264.09914834,9.003e-05,2]
[407660222,1772622631917,-225.0,9.003e-05,2]
[407660223,1772622631926,-66.80231166,9.901e-05,2]
[407660224,1772622631940,-1133.19768834,9.901e-05,2]
[407660225,1772622631950,-300.0,9.901e-05,2]
[407660226,1772622631960,-300.0,9.902e-05,2]
[407660227,1772622631970,-1200.0,9.902e-05,2]
[407660228,1772622631979,-300.0,9.902e-05,2]
[407660229,1772622631989,-408.43385145,9.903e-05,2]
[407660230,1772622631998,-2276.45659438,9.903e-05,2]
[407660231,1772622632008,-353.07408918,9.903e-05,2]
[407660232,1772622632018,-150.0,9.949e-05,2]
[407660233,1772622632027,-4730.76619032,9.95e-05,2]
[407660234,1772622632039,-383.69778905,9.95e-05,2]
[407660235,1772622632049,-260.90318403,0.000101,2]
[407660236,1772622632058,-660.39902692,0.0001074,2]
[407660237,1772622632078,-12497.57524413,0.0001074,2]
[407660239,1772622632087,-1032.24477946,0.000108,2]
[407660241,1772622632097,-314.0,0.00010891,2]
[407660243,1772622632107,-420.0,0.00010891,2]
[407660244,1772622632116,-420.0,0.00010893,2]
[407660245,1772622632126,-1680.0,0.00010893,2]
[407660246,1772622632135,-300.0,0.00010893,2]
[407660247,1772622632145,-255.0,0.00010944,2]
[407660248,1772622632155,-1000.0,0.00011,2]
[407660249,1772622632164,-750.18023506,0.00011,2]
[407660250,1772622632174,-158.28,0.00011634,2]
[407660251,1772622632184,-360.0088316,0.00011806,2]
[407660252,1772622632194,-208.0,0.0001198,2]
[407660253,1772622632203,-587.0,0.00011982,2]
[407660254,1772622632214,-1659.0,0.00011982,2]
[407660255,1772622632223,-1000.0,0.00012,3]
[407660256,1772622632233,-10654.15832975,0.00012,7]
[407660257,1772622632245,-899.14079922,0.00012,7]
[407660258,1772622632255,-884.75685383,0.00012,7]
[407660260,1772622632268,-29073.88957742,0.00012,7]
[407660261,1772622632279,-2275.29792451,0.00012,2]
[407660262,1772622632288,-797.98363115,0.00012,2]
[407660263,1772622632298,-500.0,0.00012,2]
[407660264,1772622632307,-500.0,0.00012,2]
[407660265,1772622632316,-500.0,0.00012,2]
[407660266,1772622632326,-500.0,0.00012,2]
[407660267,1772622632335,-500.0,0.00012,2]
[407660268,1772622632344,-280.0,0.00012038,2]
[407660269,1772622632356,-1105.0,0.00012146,2]
[407660270,1772622632365,-444.3243859,0.00012316,2]
[407660271,1772622632374,-211.98,0.00012401,2]
[407660272,1772622632383,-1962.28,0.00012401,2]
[407660273,1772622632392,-823.0,0.0001318,2]
[407660274,1772622632402,-500.0,0.00013539,2]
[407660275,1772622632412,-506.0,0.00014,2]
[407660276,1772622632421,-1183.90280587,0.00014162,2]
[407660277,1772622632432,-714.14,0.00014196,2]
[407660278,1772622632441,-518.69824551,0.00014287,2]
[407660279,1772622632450,-500.0,0.00014287,2]
[407660280,1772622632459,-500.0,0.00014287,2]
[407660281,1772622632468,-500.0,0.00014287,2]
[407660282,1772622632478,-500.0,0.00014287,2]
[407660283,1772622632487,-500.0,0.00014287,2]
[407660284,1772622632495,-500.0,0.00014287,2]
[407660285,1772622632505,-151.0,0.00014287,2]
[407660286,1772622632514,-500.0,0.00014287,2]
[407660287,1772622632523,-151.0,0.00014287,2]
[407660288,1772622632532,-151.0,0.00014287,2]
[407660289,1772622632541,-151.0,0.00014287,2]
[407660290,1772622632551,-151.0,0.00014287,2]
[407660291,1772622632560,-151.0,0.00014287,2]
[407660292,1772622632569,-151.0,0.00014287,2]
[407660293,1772622632578,-151.0,0.00014287,2]
[407660294,1772622632588,-151.0,0.00014287,2]
[407660295,1772622632598,-151.0,0.00014287,2]
[407660296,1772622632608,-151.0,0.00014287,2]
[407660297,1772622632618,-151.0,0.00014287,2]
[407660298,1772622632627,-230.98606825,0.00014404,2]
[407660299,1772622632637,-500.0,0.00014404,2]
[407660300,1772622632646,-500.0,0.00014404,2]
[407660301,1772622632656,-500.0,0.00014404,2]
[407660302,1772622632665,-500.0,0.00014404,2]
[407660303,1772622632674,-194.87334623,0.00014404,2]
[407660304,1772622632684,-1152.0,0.00014498,2]
[407660305,1772622632693,-250.0,0.00015,2]
[407660307,1772622632702,-16335.43,0.00015299,2]
[407660308,1772622632711,-2000.0,0.0001589,2]
[407660309,1772622632720,-1613.0,0.00015948,2]
[407660310,1772622632730,-5000.00205932,0.000162,5]
[407660311,1772622632740,-150.0,0.00016419,2]
[407660312,1772622632749,-150.0,0.0001683,14]
[407660313,1772622632758,-352.7,0.00016932,2]
[407660314,1772622632766,-1448.5525,0.00016932,2]
[407660315,1772622632775,-462.0,0.00017543,2]
[407660316,1772622632783,-7737.44,0.00017728,2]
[407660317,1772622632791,-9999.99,0.00017728,2]
[407660318,1772622632800,-400.0,0.000178,6]
[407660319,1772622632808,-1022.84666173,0.00017889,2]
[407660320,1772622632817,-2500.0,0.000179,2]
[407660321,1772622632825,-900.0,0.000179,6]
[407660322,1772622632833,-5000.0,0.000179,2]
[407660323,1772622632841,-981.71764595,0.000179,2]
[407660324,1772622632849,-413.46020109,0.000179,2]